[Event "28th Bosnjaci Open 2024"]
[Site "Bosnjaci"]
[Date "2024.01.04"]
[Round "2.11"]
[White "Sajin, Mirko"]
[Black "Zlatarevic, Ivan"]
[Result "1-0"]
[ECO "B23"]
[WhiteElo "2299"]
[BlackElo "2012"]
[Annotator "RC"]
[PlyCount "71"]
[EventDate "2024.01.02"]
[EventType "swiss"]
[EventCountry "CRO"]
[SourceTitle "playchess.com"]
[Source "ChessBase"]
[SourceQuality "1"]
[TimeControl "5400+30"]

1. e4 {[%emt 0:00:05]} c5 {[%emt 0:00:19]} 2. Nc3 {[%emt 0:01:15]} Nc6 {[%emt 0:01:18]} 3. f4 {[%emt 0:02:27]} e6 {[%emt 0:02:44]} 4. Nf3 {[%emt 0:01:37]} d5 {[%emt 0:07:17]} 5. Bb5 {[%emt 0:01:43]} a6 {[%emt 0:02:30]} 6. Bxc6+ {[%emt 0:00:56]} bxc6 {[%emt 0:00:06]} 7. d3 {[%emt 0:00:47]} Nf6 {[%emt 0:02:26]} 8. e5 {[%emt 0:01:58]} Nd7 {[%emt 0:04:06]} 9. O-O {[%emt 0:00:31]} Be7 {[%emt 0:01:27]} 10. Na4 {[%emt 0:03:21]} O-O {[%emt 0:04:36]} 11. c4 {[%emt 0:01:05]} Qc7 {[%emt 0:08:05]} 12. Qe2 {[%emt 0:03:10]} Qa5 {[%emt 0:07:11]} 13. b3 {[%emt 0:02:21]} Rb8 {[%emt 0:03:15]} 14. Qe1 {[%emt 0:02:59]} Qc7 {[%emt 0:05:46]} 15. Ba3 {[%emt 0:03:30]} Re8 {[%emt 0:10:04]} 16. Rc1 {[%emt 0:02:39]} a5 {[%emt 0:07:12]} 17. Rc2 {[%emt 0:03:39]} Ba6 {[%emt 0:02:50]} 18. Qf2 {[%emt 0:02:22]} d4 {[%emt 0:04:25]} 19. Nd2 {[%emt 0:00:23]} f6 {[%emt 0:00:50]} 20. exf6 {[%emt 0:01:06]} Nxf6 {[%emt 0:01:46]} 21. Bxc5 {[%emt 0:12:29]} Ng4 {[%emt 0:19:07]} 22. Qxd4 {[%emt 0:01:17]} Rbd8 {[%emt 0:01:37]} 23. Qe4 {[%emt 0:02:31]} Bxc5+ {[%emt 0:01:16]} 24. Nxc5 {[%emt 0:00:04]} Qa7 {[%emt 0:00:21]} 25. d4 {[%emt 0:06:09]} Nf6 {[%emt 0:01:38]} 26. Qe3 {[%emt 0:00:18]} Ng4 {[%emt 0:00:07]} 27. Qc3 {[%emt 0:02:35]} e5 {[%emt 0:01:01]} 28. fxe5 {[%emt 0:01:58]} Bc8 {[%emt 0:00:33]} 29. Nde4 {[%emt 0:02:00]} a4 {[%emt 0:00:27]} 30. h3 {[%emt 0:02:14]} axb3 {[%emt 0:00:29]} 31. axb3 {[%emt 0:00:18]} Nh6 {[%emt 0:00:15]} 32. Nd6 {[%emt 0:00:38]} Rf8 {[%emt 0:00:41]} 33. Rcf2 {[%emt 0:00:25]} Qe7 {[%emt 0:00:27]} 34. Rxf8+ {[%emt 0:05:33]} Rxf8 {[%emt 0:00:01]} 35. Rxf8+ {[%emt 0:00:09]} Qxf8 {[%emt 0:00:24]} 36. Qf3 {[%emt 0:31:58]} 1-0

[Event "28th Bosnjaci Open 2024"]
[Site "Bosnjaci"]
[Date "2024.01.04"]
[Round "2.12"]
[White "Maravic, Ivan"]
[Black "Alimpic, Aleksa"]
[Result "0-1"]
[ECO "D27"]
[WhiteElo "1991"]
[BlackElo "2282"]
[Annotator "RC"]
[PlyCount "68"]
[EventDate "2024.01.02"]
[EventType "swiss"]
[EventCountry "CRO"]
[SourceTitle "playchess.com"]
[Source "ChessBase"]
[SourceQuality "1"]
[TimeControl "5400+30"]

1. d4 {[%emt 0:03:00]} d5 {[%emt 0:00:09]} 2. c4 {[%emt 0:00:25]} dxc4 {[%emt 0:00:11]} 3. Nf3 {[%emt 0:00:13]} Nf6 {[%emt 0:00:21]} 4. e3 {[%emt 0:00:24]} e6 {[%emt 0:00:11]} 5. Bxc4 {[%emt 0:00:12]} c5 {[%emt 0:00:11]} 6. O-O {[%emt 0:00:14]} a6 {[%emt 0:00:05]} 7. Bb3 {[%emt 0:00:42]} b5 {[%emt 0:00:23]} 8. a4 {[%emt 0:00:58]} Bb7 {[%emt 0:00:19]} 9. axb5 {[%emt 0:02:22]} axb5 {[%emt 0:00:08]} 10. Rxa8 {[%emt 0:00:21]} Bxa8 {[%emt 0:00:06]} 11. Qe2 {[%emt 0:06:22]} c4 {[%emt 0:00:56]} 12. Bc2 {[%emt 0:00:33]} Nbd7 {[%emt 0:00:38]} 13. b3 {[%emt 0:03:47]} cxb3 {[%emt 0:00:38]} 14. Bxb3 {[%emt 0:00:12]} Qb8 {[%emt 0:03:36]} 15. Bb2 {[%emt 0:09:28]} Be7 {[%emt 0:02:09]} 16. Nbd2 {[%emt 0:05:30]} O-O {[%emt 0:00:55]} 17. Rc1 {[%emt 0:02:19]} b4 {[%emt 0:02:13]} 18. Ne1 {[%emt 0:04:37]} Bb7 {[%emt 0:06:20]} 19. Nd3 {[%emt 0:03:59]} Rc8 {[%emt 0:02:51]} 20. Rxc8+ {[%emt 0:04:18]} Qxc8 {[%emt 0:00:08]} 21. e4 {[%emt 0:01:16]} Bf8 {[%emt 0:06:54]} 22. f3 {[%emt 0:04:39]} Ba6 {[%emt 0:02:56]} 23. Qe3 {[%emt 0:03:33]} Bb5 {[%emt 0:03:34]} 24. Kh1 {[%emt 0:09:52]} Qa6 {[%emt 0:01:33]} 25. Nf4 {[%emt 0:03:45]} Ne8 {[%emt 0:09:06]} 26. e5 {[%emt 0:05:47]} Nc7 {[%emt 0:04:23]} 27. d5 {[%emt 0:03:29]} Nxd5 {[%emt 0:02:14]} 28. Nxd5 {[%emt 0:00:16]} exd5 {[%emt 0:00:12]} 29. Bxd5 {[%emt 0:00:11]} Nc5 {[%emt 0:06:33]} 30. h3 {[%emt 0:04:23]} Ne6 {[%emt 0:06:56]} 31. f4 {[%emt 0:04:24]} Bc5 {[%emt 0:01:52]} 32. Qg3 {[%emt 0:00:34]} Bd3 {[%emt 0:06:32]} 33. Be4 {[%emt 0:05:18]} Bxe4 {[%emt 0:00:59]} 34. Nxe4 {[%emt 0:00:13]} Qf1+ {[%emt 0:00:07]} 0-1

[Event "28th Bosnjaci Open 2024"]
[Site "Bosnjaci"]
[Date "2024.01.04"]
[Round "2.13"]
[White "Zovko, Mario"]
[Black "Alfirevic, Duje"]
[Result "1-0"]
[ECO "D00"]
[WhiteElo "2268"]
[BlackElo "2000"]
[Annotator "RC"]
[PlyCount "85"]
[EventDate "2024.01.02"]
[EventType "swiss"]
[EventCountry "CRO"]
[SourceTitle "playchess.com"]
[Source "ChessBase"]
[SourceQuality "1"]
[TimeControl "5400+30"]

1. d4 {[%emt 0:00:14]} Nf6 {[%emt 0:00:11]} 2. Nc3 {[%emt 0:00:05]} d5 {[%emt 0:00:10]} 3. Bf4 {[%emt 0:00:05]} c5 {[%emt 0:00:27]} 4. e4 {[%emt 0:02:40]} Nxe4 {[%emt 0:00:08]} 5. Bb5+ {[%emt 0:03:29]} Nc6 {[%emt 0:03:44]} 6. Nxe4 {[%emt 0:00:49]} dxe4 {[%emt 0:00:07]} 7. Ne2 {[%emt 0:00:20]} Bg4 {[%emt 0:23:05]} 8. Bxc6+ {[%emt 0:10:00]} bxc6 {[%emt 0:00:06]} 9. dxc5 {[%emt 0:00:06]} Qa5+ {[%emt 0:08:53]} 10. c3 {[%emt 0:02:13]} Qxc5 {[%emt 0:00:26]} 11. Qc2 {[%emt 0:00:05]} Bxe2 {[%emt 0:05:44]} 12. Qxe2 {[%emt 0:02:51]} g6 {[%emt 0:08:11]} 13. Qxe4 {[%emt 0:09:42]} Bg7 {[%emt 0:01:39]} 14. O-O {[%emt 0:01:44]} O-O {[%emt 0:04:04]} 15. Rad1 {[%emt 0:03:46]} Qb5 {[%emt 0:10:54]} 16. Bc1 {[%emt 0:16:24]} Qb7 {[%emt 0:04:11]} 17. Rd3 {[%emt 0:03:05]} Rad8 {[%emt 0:03:15]} 18. Rfd1 {[%emt 0:00:29]} Qc7 {[%emt 0:01:20]} 19. g3 {[%emt 0:03:47]} Rxd3 {[%emt 0:10:29]} 20. Qxd3 {[%emt 0:01:12]} Be5 {[%emt 0:00:42]} 21. Qd7 {[%emt 0:07:00]} Rc8 {[%emt 0:01:41]} 22. Bh6 {[%emt 0:06:30]} Bd6 {[%emt 0:00:33]} 23. Qg4 {[%emt 0:00:20]} Rb8 {[%emt 0:04:10]} 24. Qd4 {[%emt 0:02:25]} Be5 {[%emt 0:00:41]} 25. Qd7 {[%emt 0:01:45]} Qxd7 {[%emt 0:02:23]} 26. Rxd7 {[%emt 0:02:34]} Bd6 {[%emt 0:00:24]} 27. Rxa7 {[%emt 0:02:10]} Rxb2 {[%emt 0:00:27]} 28. Ra8+ {[%emt 0:00:06]} Rb8 {[%emt 0:00:05]} 29. Rxb8+ {[%emt 0:00:33]} Bxb8 {[%emt 0:00:02]} 30. a4 {[%emt 0:01:04]} Bc7 {[%emt 0:00:50]} 31. Kf1 {[%emt 0:01:23]} f6 {[%emt 0:02:28]} 32. Be3 {[%emt 0:02:43]} Kf7 {[%emt 0:00:07]} 33. Ke2 {[%emt 0:00:04]} Ke6 {[%emt 0:00:32]} 34. Kd3 {[%emt 0:00:04]} Kd5 {[%emt 0:00:59]} 35. c4+ {[%emt 0:02:57]} Kd6 {[%emt 0:00:43]} 36. Bd2 {[%emt 0:03:51]} e5 {[%emt 0:00:44]} 37. f4 {[%emt 0:01:20]} Kc5 {[%emt 0:03:38]} 38. fxe5 {[%emt 0:00:05]} Bxe5 {[%emt 0:00:28]} 39. a5 {[%emt 0:00:49]} Bb8 {[%emt 0:00:26]} 40. Be3+ {[%emt 0:00:51]} Kb4 {[%emt 0:00:26]} 41. Bb6 {[%emt 0:00:09]} h5 {[%emt 0:00:40]} 42. a6 {[%emt 0:00:13]} h4 {[%emt 0:00:19]} 43. gxh4 {[%emt 0:00:27]} 1-0

[Event "28th Bosnjaci Open 2024"]
[Site "Bosnjaci"]
[Date "2024.01.04"]
[Round "2.14"]
[White "Grgantov, Marin"]
[Black "Cupic, Lovro"]
[Result "1/2-1/2"]
[ECO "C49"]
[WhiteElo "1973"]
[BlackElo "2265"]
[Annotator "RC"]
[PlyCount "77"]
[EventDate "2024.01.02"]
[EventType "swiss"]
[EventCountry "CRO"]
[SourceTitle "playchess.com"]
[Source "ChessBase"]
[SourceQuality "1"]
[TimeControl "5400+30"]

1. e4 {[%emt 0:00:02]} e5 {[%emt 0:00:54]} 2. Nf3 {[%emt 0:00:14]} Nc6 {[%emt 0:00:17]} 3. Nc3 {[%emt 0:00:29]} Nf6 {[%emt 0:03:05]} 4. Bb5 {[%emt 0:00:15]} Bb4 {[%emt 0:00:21]} 5. O-O {[%emt 0:00:33]} O-O {[%emt 0:00:09]} 6. d3 {[%emt 0:00:03]} Bxc3 {[%emt 0:01:06]} 7. bxc3 {[%emt 0:00:06]} d6 {[%emt 0:00:07]} 8. Bg5 {[%emt 0:00:28]} Ne7 {[%emt 0:00:48]} 9. Nh4 {[%emt 0:01:21]} Ng6 {[%emt 0:10:36]} 10. Nxg6 {[%emt 0:21:29]} fxg6 {[%emt 0:06:55]} 11. Bc4+ {[%emt 0:02:05]} Kh8 {[%emt 0:00:13]} 12. f4 {[%emt 0:09:22]} h6 {[%emt 0:00:08]} 13. fxe5 {[%emt 0:00:16]} hxg5 {[%emt 0:00:07]} 14. exf6 {[%emt 0:00:04]} gxf6 {[%emt 0:00:08]} 15. Qd2 {[%emt 0:15:26]} Kg7 {[%emt 0:01:00]} 16. Rae1 {[%emt 0:05:10]} Qe7 {[%emt 0:04:05]} 17. d4 {[%emt 0:01:32]} Bd7 {[%emt 0:03:14]} 18. Bd3 {[%emt 0:20:00]} Be6 {[%emt 0:03:31]} 19. c4 {[%emt 0:00:40]} c5 {[%emt 0:05:57]} 20. c3 {[%emt 0:01:26]} Rac8 {[%emt 0:03:57]} 21. Rc1 {[%emt 0:04:20]} Rc7 {[%emt 0:10:43]} 22. Rf2 {[%emt 0:04:14]} Qd8 {[%emt 0:05:00]} 23. Qc2 {[%emt 0:02:15]} Qc8 {[%emt 0:05:13]} 24. d5 {[%emt 0:02:02]} Bf7 {[%emt 0:04:01]} 25. Rcf1 {[%emt 0:00:03]} Be8 {[%emt 0:00:56]} 26. Qd1 {[%emt 0:01:54]} Qd7 {[%emt 0:02:31]} 27. Qf3 {[%emt 0:01:21]} Qe7 {[%emt 0:01:44]} 28. Qg3 {[%emt 0:00:06]} Bd7 {[%emt 0:02:34]} 29. Bc2 {[%emt 0:00:27]} Rcc8 {[%emt 0:02:02]} 30. h3 {[%emt 0:01:57]} Rce8 {[%emt 0:00:16]} 31. Rb1 {[%emt 0:00:58]} Bc8 {[%emt 0:00:25]} 32. Kh2 {[%emt 0:00:39]} Qe5 {[%emt 0:00:37]} 33. Qxe5 {[%emt 0:00:06]} Rxe5 {[%emt 0:00:07]} 34. g4 {[%emt 0:00:43]} Kf7 {[%emt 0:06:36]} 35. Kg3 {[%emt 0:00:25]} Ke7 {[%emt 0:00:11]} 36. Rbf1 {[%emt 0:00:20]} Rf7 {[%emt 0:06:56]} 37. Bd3 {[%emt 0:00:07]} Rf8 {[%emt 0:00:05]} 38. Bc2 {[%emt 0:00:05]} Rf7 {[%emt 0:00:04]} 39. Bd3 {[%emt 0:00:03]} 1/2-1/2

[Event "28th Bosnjaci Open 2024"]
[Site "Bosnjaci"]
[Date "2024.01.04"]
[Round "2.15"]
[White "Pavic, Filip"]
[Black "Jovic, Stevan"]
[Result "1/2-1/2"]
[ECO "B12"]
[WhiteElo "2261"]
[BlackElo "1993"]
[Annotator "RC"]
[PlyCount "26"]
[EventDate "2024.01.02"]
[EventType "swiss"]
[EventCountry "CRO"]
[SourceTitle "playchess.com"]
[Source "ChessBase"]
[SourceQuality "1"]
[TimeControl "5400+30"]

1. e4 {[%emt 0:00:03]} c6 {[%emt 0:13:37]} 2. d4 {[%emt 0:00:11]} d5 {[%emt 0:00:07]} 3. e5 {[%emt 0:00:18]} Bf5 {[%emt 0:00:06]} 4. h4 {[%emt 0:00:31]} Qb6 {[%emt 0:07:20]} 5. h5 {[%emt 0:00:54]} h6 {[%emt 0:03:54]} 6. Nc3 {[%emt 0:08:22]} e6 {[%emt 0:00:20]} 7. Na4 {[%emt 0:01:37]} Qa5+ {[%emt 0:00:23]} 8. c3 {[%emt 0:00:39]} Nd7 {[%emt 0:10:04]} 9. b4 {[%emt 0:14:52]} Qc7 {[%emt 0:01:32]} 10. g4 {[%emt 0:08:10]} Bh7 {[%emt 0:01:45]} 11. Be3 {[%emt 0:05:25]} a5 {[%emt 0:00:26]} 12. b5 {[%emt 0:02:46]} c5 {[%emt 0:04:47]} 13. Bd3 {[%emt 0:05:28]} Bxd3 {[%emt 0:06:48]} 1/2-1/2

[Event "28th Bosnjaci Open 2024"]
[Site "Bosnjaci"]
[Date "2024.01.04"]
[Round "2.16"]
[White "Bobanac, Miro"]
[Black "Samblic, Silvano"]
[Result "1/2-1/2"]
[ECO "A06"]
[WhiteElo "2238"]
[BlackElo "1962"]
[Annotator "RC"]
[PlyCount "77"]
[EventDate "2024.01.02"]
[EventType "swiss"]
[EventCountry "CRO"]
[SourceTitle "playchess.com"]
[Source "ChessBase"]
[SourceQuality "1"]
[TimeControl "5400+30"]

1. Nf3 {[%emt 0:00:17]} d5 {[%emt 0:04:14]} 2. b3 {[%emt 0:01:14]} Nf6 {[%emt 0:01:04]} 3. Bb2 {[%emt 0:00:19]} Nc6 {[%emt 0:01:25]} 4. e3 {[%emt 0:01:26]} Bg4 {[%emt 0:00:22]} 5. h3 {[%emt 0:01:02]} Bxf3 {[%emt 0:03:01]} 6. Qxf3 {[%emt 0:00:59]} a6 {[%emt 0:01:26]} 7. a3 {[%emt 0:12:38]} e5 {[%emt 0:04:08]} 8. d4 {[%emt 0:04:56]} Bd6 {[%emt 0:06:47]} 9. c4 {[%emt 0:07:17]} exd4 {[%emt 0:04:09]} 10. cxd5 {[%emt 0:03:04]} Ne5 {[%emt 0:02:00]} 11. Qf5 {[%emt 0:08:10]} g6 {[%emt 0:05:14]} 12. Qg5 {[%emt 0:02:11]} Nxd5 {[%emt 0:10:48]} 13. Qxd8+ {[%emt 0:00:45]} Rxd8 {[%emt 0:00:12]} 14. Bxd4 {[%emt 0:00:36]} O-O {[%emt 0:00:16]} 15. Nd2 {[%emt 0:01:13]} Rfe8 {[%emt 0:04:25]} 16. Be2 {[%emt 0:06:03]} Nc6 {[%emt 0:03:57]} 17. Bb2 {[%emt 0:02:55]} Be5 {[%emt 0:00:16]} 18. Bxe5 {[%emt 0:07:28]} Nxe5 {[%emt 0:00:40]} 19. Rc1 {[%emt 0:00:52]} Nf4 {[%emt 0:05:02]} 20. Rc2 {[%emt 0:05:48]} Nxg2+ {[%emt 0:05:21]} 21. Kf1 {[%emt 0:00:12]} Nh4 {[%emt 0:00:20]} 22. Ne4 {[%emt 0:02:46]} Re7 {[%emt 0:04:17]} 23. Nc5 {[%emt 0:02:27]} b6 {[%emt 0:12:48]} 24. Nxa6 {[%emt 0:05:20]} c5 {[%emt 0:00:45]} 25. b4 {[%emt 0:02:52]} cxb4 {[%emt 0:03:20]} 26. Nxb4 {[%emt 0:03:11]} Red7 {[%emt 0:02:24]} 27. f4 {[%emt 0:06:37]} Rd1+ {[%emt 0:03:13]} 28. Bxd1 {[%emt 0:00:08]} Rxd1+ {[%emt 0:00:04]} 29. Kf2 {[%emt 0:00:43]} Rxh1 {[%emt 0:00:12]} 30. fxe5 {[%emt 0:00:15]} Rxh3 {[%emt 0:01:49]} 31. Rc8+ {[%emt 0:00:23]} Kg7 {[%emt 0:00:09]} 32. Nd5 {[%emt 0:01:06]} Rh2+ {[%emt 0:01:28]} 33. Kg3 {[%emt 0:01:32]} Rd2 {[%emt 0:00:14]} 34. e4 {[%emt 0:02:01]} g5 {[%emt 0:02:15]} 35. Rc7 {[%emt 0:02:31]} Kg6 {[%emt 0:02:21]} 36. Rc6+ {[%emt 0:01:18]} Kg7 {[%emt 0:00:12]} 37. Rc7 {[%emt 0:02:21]} Kg6 {[%emt 0:01:08]} 38. Rc6+ {[%emt 0:00:30]} Kg7 {[%emt 0:00:13]} 39. Rc7 {[%emt 0:00:31]} 1/2-1/2

[Event "28th Bosnjaci Open 2024"]
[Site "Bosnjaci"]
[Date "2024.01.04"]
[Round "2.17"]
[White "Baturina, Marin"]
[Black "Rosic, Slavko S"]
[Result "1/2-1/2"]
[ECO "D37"]
[WhiteElo "1933"]
[BlackElo "2231"]
[Annotator "RC"]
[PlyCount "203"]
[EventDate "2024.01.02"]
[EventType "swiss"]
[EventCountry "CRO"]
[SourceTitle "playchess.com"]
[Source "ChessBase"]
[SourceQuality "1"]
[TimeControl "5400+30"]

1. d4 {[%emt 0:00:03]} d5 {[%emt 0:00:29]} 2. c4 {[%emt 0:00:07]} e6 {[%emt 0:00:24]} 3. Nc3 {[%emt 0:00:17]} Nf6 {[%emt 0:01:18]} 4. Nf3 {[%emt 0:00:34]} Be7 {[%emt 0:03:01]} 5. Bf4 {[%emt 0:01:17]} O-O {[%emt 0:01:24]} 6. e3 {[%emt 0:01:00]} a6 {[%emt 0:04:38]} 7. Qc2 {[%emt 0:08:01]} Nbd7 {[%emt 0:06:48]} 8. Rd1 {[%emt 0:07:37]} c6 {[%emt 0:05:49]} 9. a3 {[%emt 0:04:55]} Re8 {[%emt 0:03:24]} 10. h3 {[%emt 0:01:30]} Nf8 {[%emt 0:01:08]} 11. Bd3 {[%emt 0:04:14]} Bd6 {[%emt 0:02:24]} 12. Bxd6 {[%emt 0:07:29]} Qxd6 {[%emt 0:00:20]} 13. Ne5 {[%emt 0:02:28]} c5 {[%emt 0:05:13]} 14. O-O {[%emt 0:09:15]} cxd4 {[%emt 0:01:27]} 15. exd4 {[%emt 0:00:03]} dxc4 {[%emt 0:09:19]} 16. Nxc4 {[%emt 0:05:00]} Qc7 {[%emt 0:01:36]} 17. Ne3 {[%emt 0:03:26]} b5 {[%emt 0:10:23]} 18. Ne4 {[%emt 0:02:33]} Qxc2 {[%emt 0:02:22]} 19. Nxf6+ {[%emt 0:00:29]} gxf6 {[%emt 0:00:07]} 20. Bxc2 {[%emt 0:00:12]} Bb7 {[%emt 0:01:01]} 21. d5 {[%emt 0:10:17]} Bxd5 {[%emt 0:00:08]} 22. Nxd5 {[%emt 0:00:19]} exd5 {[%emt 0:00:08]} 23. Bb3 {[%emt 0:07:02]} Ra7 {[%emt 0:02:39]} 24. Bxd5 {[%emt 0:02:09]} Re2 {[%emt 0:00:45]} 25. b4 {[%emt 0:01:23]} Ng6 {[%emt 0:02:51]} 26. Rfe1 {[%emt 0:05:21]} Rb2 {[%emt 0:02:00]} 27. Re8+ {[%emt 0:05:32]} Kg7 {[%emt 0:00:12]} 28. Ra8 {[%emt 0:00:16]} Rd7 {[%emt 0:19:18]} 29. Rxa6 {[%emt 0:01:45]} Nf4 {[%emt 0:00:05]} 30. Bf3 {[%emt 0:00:20]} Rxd1+ {[%emt 0:00:09]} 31. Bxd1 {[%emt 0:00:02]} Rb1 {[%emt 0:00:36]} 32. Rd6 {[%emt 0:00:05]} Ra1 {[%emt 0:00:21]} 33. Kh2 {[%emt 0:01:42]} Rxa3 {[%emt 0:00:16]} 34. Rb6 {[%emt 0:01:23]} Rd3 {[%emt 0:07:53]} 35. Bf3 {[%emt 0:01:39]} Rd4 {[%emt 0:00:07]} 36. Rxb5 {[%emt 0:00:36]} Nd3 {[%emt 0:00:04]} 37. Rb7 {[%emt 0:04:31]} Rxb4 {[%emt 0:00:31]} 38. Ra7 {[%emt 0:00:44]} Ne5 {[%emt 0:01:33]} 39. Bd5 {[%emt 0:01:08]} f5 {[%emt 0:00:25]} 40. Rb7 {[%emt 0:01:18]} Rd4 {[%emt 0:00:12]} 41. Bf3 {[%emt 0:01:43]} Nd3 {[%emt 0:00:09]} 42. Bh5 {[%emt 0:00:32]} Ne5 {[%emt 0:00:30]} 43. Rb5 {[%emt 0:01:00]} f6 {[%emt 0:01:46]} 44. Bf3 {[%emt 0:00:28]} Kg6 {[%emt 0:00:24]} 45. Rb2 {[%emt 0:00:33]} h5 {[%emt 0:01:13]} 46. Ra2 {[%emt 0:00:31]} h4 {[%emt 0:00:13]} 47. Rb2 {[%emt 0:00:35]} Kg5 {[%emt 0:00:34]} 48. Ba8 {[%emt 0:00:23]} Rf4 {[%emt 0:00:18]} 49. Rd2 {[%emt 0:00:36]} Ra4 {[%emt 0:00:23]} 50. Bb7 {[%emt 0:00:25]} f4 {[%emt 0:01:01]} 51. Rc2 {[%emt 0:00:37]} Rd4 {[%emt 0:00:48]} 52. Ra2 {[%emt 0:00:32]} Rd1 {[%emt 0:00:14]} 53. Bf3 {[%emt 0:00:25]} Rd4 {[%emt 0:00:55]} 54. Rb2 {[%emt 0:00:29]} Rd3 {[%emt 0:00:29]} 55. Be4 {[%emt 0:00:17]} Rd4 {[%emt 0:00:59]} 56. Bf3 {[%emt 0:00:06]} Rd8 {[%emt 0:00:08]} 57. Be4 {[%emt 0:00:29]} Nc4 {[%emt 0:00:33]} 58. Rb5+ {[%emt 0:00:24]} Ne5 {[%emt 0:00:10]} 59. Rb2 {[%emt 0:01:10]} Rd1 {[%emt 0:00:08]} 60. Bf3 {[%emt 0:00:27]} Rf1 {[%emt 0:00:02]} 61. Be4 {[%emt 0:00:38]} Re1 {[%emt 0:00:19]} 62. Bf3 {[%emt 0:00:27]} Rc1 {[%emt 0:00:23]} 63. Rd2 {[%emt 0:00:22]} Rc3 {[%emt 0:00:43]} 64. Ba8 {[%emt 0:00:41]} Ra3 {[%emt 0:00:33]} 65. Bb7 {[%emt 0:00:11]} f5 {[%emt 0:00:14]} 66. Rb2 {[%emt 0:00:35]} Rd3 {[%emt 0:00:19]} 67. Rb5 {[%emt 0:00:33]} Kf6 {[%emt 0:00:21]} 68. Rb6+ {[%emt 0:00:14]} Ke7 {[%emt 0:00:17]} 69. Rh6 {[%emt 0:01:01]} Rd2 {[%emt 0:01:17]} 70. f3 {[%emt 0:00:31]} Nd3 {[%emt 0:01:34]} 71. Ba6 {[%emt 0:00:29]} Ne1 {[%emt 0:00:07]} 72. Bf1 {[%emt 0:00:31]} Nxf3+ {[%emt 0:00:03]} 73. Kh1 {[%emt 0:01:03]} Ne5 {[%emt 0:01:12]} 74. Rxh4 {[%emt 0:00:00]} f3 {[%emt 0:00:08]} 75. Rf4 {[%emt 0:00:00]} Ke6 {[%emt 0:00:58]} 76. gxf3 {[%emt 0:00:12]} Ng6 {[%emt 0:00:27]} 77. Ra4 {[%emt 0:00:52]} Ke5 {[%emt 0:00:03]} 78. h4 {[%emt 0:00:39]} Nf4 {[%emt 0:00:02]} 79. Ra5+ {[%emt 0:00:40]} Kd4 {[%emt 0:01:16]} 80. Rxf5 {[%emt 0:00:32]} Ke3 {[%emt 0:00:01]} 81. Kg1 {[%emt 0:00:31]} Kxf3 {[%emt 0:01:34]} 82. Ra5 {[%emt 0:00:25]} Kg4 {[%emt 0:02:14]} 83. Ra3 {[%emt 0:00:31]} Kxh4 {[%emt 0:00:10]} 84. Rf3 {[%emt 0:00:23]} Kg4 {[%emt 0:00:25]} 85. Rf2 {[%emt 0:00:24]} Rd1 {[%emt 0:00:18]} 86. Kh2 {[%emt 0:01:21]} Rd6 {[%emt 0:00:28]} 87. Be2+ {[%emt 0:00:00]} Kg5 {[%emt 0:00:10]} 88. Kg3 {[%emt 0:00:27]} Rd4 {[%emt 0:01:22]} 89. Kf3 {[%emt 0:00:27]} Ra4 {[%emt 0:00:08]} 90. Ke3 {[%emt 0:00:32]} Ra3+ {[%emt 0:00:21]} 91. Ke4 {[%emt 0:00:15]} Ra4+ {[%emt 0:00:45]} 92. Ke3 {[%emt 0:00:35]} Kf5 {[%emt 0:00:22]} 93. Bd3+ {[%emt 0:00:34]} Ke5 {[%emt 0:00:01]} 94. Rb2 {[%emt 0:00:20]} Nd5+ {[%emt 0:00:08]} 95. Kd2 {[%emt 0:00:39]} Rh4 {[%emt 0:00:13]} 96. Rb8 {[%emt 0:00:33]} Kd4 {[%emt 0:00:17]} 97. Ra8 {[%emt 0:00:31]} Rh2+ {[%emt 0:00:44]} 98. Be2 {[%emt 0:00:10]} Nf4 {[%emt 0:01:12]} 99. Rd8+ {[%emt 0:00:24]} Kc5 {[%emt 0:00:34]} 100. Rc8+ {[%emt 0:00:29]} Kd6 {[%emt 0:00:04]} 101. Re8 {[%emt 0:00:04]} Rxe2+ {[%emt 0:05:28]} 102. Rxe2 {[%emt 0:00:36]} 1/2-1/2

[Event "28th Bosnjaci Open 2024"]
[Site "Bosnjaci"]
[Date "2024.01.04"]
[Round "2.18"]
[White "Milovic, Jovan"]
[Black "Dubrovic, Mihovil"]
[Result "1-0"]
[ECO "A45"]
[WhiteElo "2223"]
[BlackElo "1955"]
[Annotator "RC"]
[PlyCount "83"]
[EventDate "2024.01.02"]
[EventType "swiss"]
[EventCountry "CRO"]
[SourceTitle "playchess.com"]
[Source "ChessBase"]
[SourceQuality "1"]
[TimeControl "5400+30"]

1. d4 {[%emt 0:01:37]} Nf6 {[%emt 0:00:42]} 2. Bg5 {[%emt 0:00:43]} e6 {[%emt 0:00:59]} 3. e4 {[%emt 0:00:18]} h6 {[%emt 0:00:38]} 4. Bxf6 {[%emt 0:00:08]} Qxf6 {[%emt 0:00:05]} 5. e5 {[%emt 0:00:07]} Qd8 {[%emt 0:01:30]} 6. Bd3 {[%emt 0:00:07]} d6 {[%emt 0:02:22]} 7. Nf3 {[%emt 0:00:16]} Nd7 {[%emt 0:02:26]} 8. Qe2 {[%emt 0:00:57]} dxe5 {[%emt 0:05:23]} 9. dxe5 {[%emt 0:00:03]} Nc5 {[%emt 0:04:06]} 10. O-O {[%emt 0:00:44]} Nxd3 {[%emt 0:05:44]} 11. Rd1 {[%emt 0:00:09]} Bc5 {[%emt 0:02:34]} 12. Rxd3 {[%emt 0:00:08]} Qe7 {[%emt 0:01:06]} 13. Nc3 {[%emt 0:00:14]} Bd7 {[%emt 0:05:24]} 14. Ne4 {[%emt 0:10:52]} Bb6 {[%emt 0:12:39]} 15. a4 {[%emt 0:00:38]} a5 {[%emt 0:01:41]} 16. Nfd2 {[%emt 0:02:50]} Bc6 {[%emt 0:04:18]} 17. Nc4 {[%emt 0:00:10]} Ba7 {[%emt 0:07:02]} 18. Qg4 {[%emt 0:02:22]} Bxe4 {[%emt 0:10:32]} 19. Qxe4 {[%emt 0:00:16]} Qc5 {[%emt 0:04:36]} 20. Qf4 {[%emt 0:09:13]} O-O {[%emt 0:04:29]} 21. Rg3 {[%emt 0:00:40]} Kh8 {[%emt 0:01:47]} 22. c3 {[%emt 0:03:05]} Rad8 {[%emt 0:03:32]} 23. Rf1 {[%emt 0:00:15]} f5 {[%emt 0:05:14]} 24. Rg6 {[%emt 0:01:48]} Qd5 {[%emt 0:02:33]} 25. h4 {[%emt 0:00:19]} Rfe8 {[%emt 0:04:08]} 26. h5 {[%emt 0:01:02]} Re7 {[%emt 0:01:46]} 27. Kh2 {[%emt 0:01:36]} Qd3 {[%emt 0:01:05]} 28. Ne3 {[%emt 0:01:11]} Qe2 {[%emt 0:01:49]} 29. Qf3 {[%emt 0:05:14]} Qxf3 {[%emt 0:00:52]} 30. gxf3 {[%emt 0:00:03]} Bxe3 {[%emt 0:00:45]} 31. fxe3 {[%emt 0:00:08]} Rd2+ {[%emt 0:00:16]} 32. Rg2 {[%emt 0:59:17]} Red7 {[%emt 0:01:14]} 33. Rff2 {[%emt 0:00:00]} Rd1 {[%emt 0:01:02]} 34. Rg6 {[%emt 0:00:00]} Re1 {[%emt 0:01:28]} 35. Rxe6 {[%emt 0:00:00]} Rxe3 {[%emt 0:00:54]} 36. Kg3 {[%emt 0:00:00]} Re1 {[%emt 0:00:54]} 37. Re8+ {[%emt 0:00:00]} Kh7 {[%emt 0:00:07]} 38. Kf4 {[%emt 0:00:00]} Rh1 {[%emt 0:01:13]} 39. e6 {[%emt 0:00:00]} Rd5 {[%emt 0:00:32]} 40. e7 {[%emt 0:00:00]} g5+ {[%emt 0:00:32]} 41. hxg6+ {[%emt 0:00:00]} Kxg6 {[%emt 0:00:30]} 42. Rg8+ {[%emt 0:05:00]} 1-0